Cogmind - Beta 10.2 @@@ ROGUE MODE // 2021.01.05 @ 20:39:13 Player: Cracklepappy Result: Destroyed by G-34 Mercenary with Small Laser Performance ------------- Evolutions (1) 500 Regions Visited (5) 1000 Robots Destroyed (101) 505 Value Destroyed (2934) 2934 Prototype IDs (30) 600 Alien Tech Used (0) 0 Bonus (394) 394 TOTAL SCORE: 5933 Bonus ------- High Alert Combat Kills 94 Aligned with FarCom 300 Cogmind --------- Core Integrity 0/400 Matter 195/300 Energy 90/100 System Corruption 6% Temperature Cool (20) Movement Treading (220) Ox3 Location -9/Exiles Parts ------- > --- POWER (1) -------- (None) > --- PROPULSION (2) --- Light Treads > --- UTILITY (4) ------ High-capacity Storage Unit High-capacity Storage Unit Core Shielding Core Shielding > --- WEAPON (2) ------- Autogun 8R-AWN's Boregun > --- INVENTORY (20) --- Nuclear Core 8R-AWN's Armor/EX AS-neutralizer No. 17b Autogun Peak State ------------ > --- POWER ------------ Improved Ion Engine > --- PROPULSION ------- Light Treads Light Treads > --- UTILITY ---------- Experimental Heat Sink High-capacity Storage Unit High-capacity Storage Unit Core Shielding > --- WEAPON ----------- AWS/Gauss > --- INVENTORY -------- Improved Ion Engine Nuclear Core Fission Core Light Fission Core Light Treads Light Treads Improved Treads Improved Treads High-capacity Matter Pod Core Shielding Light Armor Plating Medium Armor Plating 8R-AWN's Armor/EX Autogun Autogun Autogun 8R-AWN's Boregun 8R-AWN's Boregun Rocket Launcher [Rating: 37] Favorites ----------- Power Ion Engine Engine Ion Engine Propulsion Light Treads Treads Light Treads Wheel Compact Wheel Utility Large Storage Unit Device Experimental Heat Sink Storage Large Storage Unit Protection Core Shielding Weapon Autogun Energy Gun Small Laser Ballistic Gun Autogun Launcher Rocket Launcher Build | -11 -10 -10 -9 -9 -9 ------- Run | Scr Mat Min Mat Min Exi Slots Evolved 2 | . . . 2 . . Power . | . . . . . . Propulsion . | . . . . . . Utility 2 | . . . 2 . . Weapon . | . . . . . . Parts Attached 85 | 8 18 4 20 7 28 Power 13 | 1 6 1 2 2 1 Engine 13 | 1 6 1 2 2 1 Core . | . . . . . . Reactor . | . . . . . . Propulsion 17 | 3 4 . 4 1 5 Treads 15 | 1 4 . 4 1 5 Leg . | . . . . . . Wheel 2 | 2 . . . . . Hover . | . . . . . . Flight . | . . . . . . Utility 18 | 2 2 . 5 . 9 Device 3 | . . . . . 3 Storage 9 | 2 2 . 3 . 2 Processor . | . . . . . . Hackware . | . . . . . . Protection 6 | . . . 2 . 4 Artifact . | . . . . . . Weapon 37 | 2 6 3 9 4 13 Energy Gun 2 | 2 . . . . . Energy Cannon . | . . . . . . Ballistic Gun 28 | . 6 2 7 2 11 Ballistic Cannon . | . . . . . . Launcher 7 | . . 1 2 2 2 Special Weapon . | . . . . . . Impact Weapon . | . . . . . . Slashing Weapon . | . . . . . . Piercing Weapon . | . . . . . . Special Melee Weapon . | . . . . . . Unidentified Prototypes 4 | . . . . . 4 Parts Lost 21 | . 1 2 5 . 13 Power 4 | . . 1 1 . 2 Propulsion 7 | . . . 1 . 6 Utility 2 | . . . . . 2 Weapon 8 | . 1 1 3 . 3 Highest Loss Streak 8 | . 1 1 4 . 8 Average Slot Usage (%) 99 | . 99 99 99 100 97 Engine 11 | . 13 13 11 11 10 Treads 23 | . 27 28 21 22 21 Storage 29 | . 28 28 33 33 25 Protection 9 | . . . 11 11 18 Energy Gun 3 | . 12 . . . . Ballistic Gun 19 | . 15 28 21 22 19 Naked Turns . | . . . . . . Heaviest Build 94 | 13 39 40 60 62 94 Greatest Support 46 | 20 43 43 43 43 46 Greatest Overweight (x) 2 | . 2 . 1 1 2 Average Overweight (x) . | . . . 1 1 1 Largest Inventory Capacity 26 | 8 16 16 22 22 26 Average Capacity 19 | 6 15 16 20 22 21 Most Carried 24 | 8 16 16 22 22 24 Average Carried 18 | 4 15 15 19 21 19 Final Capacity 22 | 8 16 16 22 22 20 Final Carried 22 | 8 16 15 22 22 5 Class Distribution -------------------- 64% | Hauler-Mutant 35% | Mutant Dominant Class ---------------- Mutant | -10/Materials Mutant | -10/Mines Hauler-Mutant | -9/Materials Hauler-Mutant | -9/Mines Hauler-Mutant | -9/Exiles Resources | -11 -10 -10 -9 -9 -9 ----------- Run | Scr Mat Min Mat Min Exi Matter Collected 1844 | 280 389 123 443 263 346 Remotely . | . . . . . . Salvage Created 3408 | 120 728 190 842 236 1292 Parts 224 | 10 51 12 51 12 88 Haulers Intercepted 2 | . . . 2 . . Recyclers Shooed 2 | . . 1 1 . . Parts Field Recycled . | . . . . . . Retrieved Matter . | . . . . . . Parts Self-Destructed . | . . . . . . Prevented . | . . . . . . Kills | -11 -10 -10 -9 -9 -9 ------- Run | Scr Mat Min Mat Min Exi Combat Hostiles Destroyed 87 | . 20 7 21 9 30 Guns 66 | . 20 4 15 5 22 AOE 21 | . . 3 6 4 8 Classes Destroyed 13 | 2 4 . 3 1 3 Worker 4 | . 1 . 3 . . Tunneler 2 | 2 . . . . . Hauler 2 | . . . 2 . . Recycler 4 | 1 1 . 1 1 . Operator 1 | . . . 1 . . Watcher 1 | . 1 . . . . Swarmer 24 | . 6 3 10 5 . Grunt 41 | . 14 4 8 3 12 Brawler 2 | . . . . . 2 Duelist 2 | . . . . 1 1 Sentry 3 | . . . 3 . . Hunter 7 | . . . . . 7 Programmer 7 | . . . . . 7 Best Kill Streak 25 | 2 3 3 6 4 25 Combat Bots Only 25 | . 3 3 4 4 25 Max Kills in Single Turn 5 | 2 1 3 4 3 5 Gunslinging . | . . . . . . Exploded 5 | . . 3 3 3 5 Melee . | . . . . . . Uniques/NPCs Destroyed 1 | . . . . . 1 8R-AWN (-9/Exiles) Combat | -11 -10 -10 -9 -9 -9 -------- Run | Scr Mat Min Mat Min Exi Damage Taken 4629 | . 671 388 849 279 2442 Core 645 | . 143 97 96 36 273 Absorbed by Shields . | . . . . . . Core Remaining (%) 52 | 100 . 4 . . . Volleys Fired 197 | 4 60 20 64 21 28 Largest 2 | 2 2 2 2 2 2 Hottest 80 | 80 80 40 46 46 60 Shots Fired 466 | 8 120 39 124 38 137 Gun 451 | 8 120 38 120 34 131 Cannon . | . . . . . . Launcher 15 | . . 1 4 4 6 Special . | . . . . . . Kinetic 385 | . 62 38 120 34 131 Thermal 66 | 8 58 . . . . Explosive 15 | . . 1 4 4 6 Electromagnetic . | . . . . . . Robot Hit Streak 29 | 6 29 10 13 10 14 Robot Miss Streak 3 | . 2 3 2 3 2 Penetration Max 1 | . . . . . 1 Secondary Targets 6 | . 2 1 1 . 2 Max Gunslinging Chain 1 | . 1 1 1 . 1 Autonomous 88 | . . . . . 88 Shots Hit Robots 353 | 6 98 28 92 24 105 Core Hits 183 | 4 43 15 48 16 57 Critical Hits 13 | . . . 3 . 10 Critical Kills 5 | . . . 2 . 3 Critical Parts Destroyed 8 | . . . 1 . 7 Melee Attacks . | . . . . . . Impact . | . . . . . . Slashing . | . . . . . . Piercing . | . . . . . . Sneak Attacks . | . . . . . . Combat Hostiles . | . . . . . . Follow-up Attacks . | . . . . . . Damage Inflicted 7452 | 74 977 373 1571 895 3562 Guns 5598 | 74 941 241 1020 378 2944 Cannons . | . . . . . . Explosions 1649 | . . 119 484 502 544 Melee . | . . . . . . Ramming 205 | . 36 13 67 15 74 Kinetic 4987 | . 404 241 1020 378 2944 Thermal 611 | 74 537 . . . . Explosive 1649 | . . 119 484 502 544 Electromagnetic . | . . . . . . Impact . | . . . . . . Slashing . | . . . . . . Piercing . | . . . . . . Highest Corruption 6 | . . . . . 6 Average Corruption 2 | . . . . . 2 Corruption Purged . | . . . . . . Effects 3 | . . . . . 3 Matter Fused 2 | . . . . . 2 Energy Discharges 1 | . . . . . 1 Overload Shots . | . . . . . . Overflow Damage 10 | . . . . 10 . Projectiles . | . . . . . . Explosions 4 | . . . . 4 . Melee 6 | . . . . 6 . Knockbacks . | . . . . . . Impact . | . . . . . . Kinetic . | . . . . . . Secondary . | . . . . . . Self-Inflicted Damage 139 | . . 42 41 34 22 Shots 6 | . . 3 1 1 1 Rammed 30 | . 4 3 7 3 13 Targets Rammed 31 | . 5 3 7 3 13 Kicked . | . . . . . . Crushed 1 | . 1 . . . . Highest Temperature 282 | 54 282 19 12 12 9 Average Temperature 49 | 25 78 10 5 4 3 Received Heat Transfer 909 | . 294 198 291 66 60 Siege Activations . | . . . . . . Robots Corrupted . | . . . . . . Combat Hostiles . | . . . . . . Parts Fried . | . . . . . . Impact Corruptions 1 | . . . . 1 . Robots Melted . | . . . . . . Combat Hostiles . | . . . . . . Parts Melted 6 | 1 5 . . . . Heat Transferred 1375 | 175 1200 . . . . Parts Sabotaged . | . . . . . . Parts Stolen . | . . . . . . Parts Stripped . | . . . . . . Power Chain Reactions . | . . . . . . Missiles Intercepted . | . . . . . . Alert | -11 -10 -10 -9 -9 -9 ------- Run | Scr Mat Min Mat Min Exi Peak Influence 462 | 15 462 363 341 251 . Initial 153 | . 9 153 141 111 . Average 191 | 4 237 314 194 122 . Maximum Alert Level 2 | . 2 1 1 1 . Low Security (%) 53 | 100 41 . 52 74 . Level 1 40 | . 42 99 47 25 . Level 2 5 | . 15 . . . . Level 3 . | . . . . . . Level 4 . | . . . . . . Level 5 . | . . . . . . High Security . | . . . . . . Max Security . | . . . . . . Squads Dispatched 10 | . 6 . 4 . . Investigation 4 | . 3 . 1 . . Extermination . | . . . . . . Reinforcement 6 | . 3 . 3 . . Assault . | . . . . . . Garrison . | . . . . . . Intercept . | . . . . . . Construction Impeded . | . . . . . . Haulers Reinforced . | . . . . . . Stealth | -11 -10 -10 -9 -9 -9 --------- Run | Scr Mat Min Mat Min Exi Distress Signals 2 | . 1 . 1 . . Communications Jammed . | . . . . . . Distress Signals . | . . . . . . Times Spotted 132 | . 35 7 44 14 32 Peak Tracking Total 11 | . 4 3 5 4 11 Tactical Retreats 9 | . 3 . 1 4 1 Traps | -11 -10 -10 -9 -9 -9 ------- Run | Scr Mat Min Mat Min Exi Traps Triggered 4 | . 4 . . . . Indirectly . | . . . . . . Trap Hack Attempts . | . . . . . . Triggered . | . . . . . . Disarmed . | . . . . . . Reprogrammed . | . . . . . . Reused . | . . . . . . Traps Extracted . | . . . . . . Installed . | . . . . . . Triggered . | . . . . . . Machines | -11 -10 -10 -9 -9 -9 ---------- Run | Scr Mat Min Mat Min Exi Machines Disabled 13 | . . 3 . 2 8 Max in Single Turn 3 | . . 3 . 1 1 Machines Sabotaged . | . . . . . . Garrisons Compromised . | . . . . . . Overloaded Fab Kills . | . . . . . . Fab Network Shutdowns . | . . . . . . Hacking | -11 -10 -10 -9 -9 -9 --------- Run | Scr Mat Min Mat Min Exi Machines Accessed 11 | . 6 . 3 . 2 Terminals 5 | . 3 . 2 . . Fabricators . | . . . . . . Repair Stations 1 | . 1 . . . . Recycling Units 3 | . 2 . 1 . . Scanalyzers . | . . . . . . Garrison Access . | . . . . . . Total Hacks 25 | . 12 . 11 . 2 Successful 17 | . 9 . 6 . 2 Failed 8 | . 3 . 5 . . Catastrophic . | . . . . . . Database Lockouts . | . . . . . . Manual 17 | . 7 . 9 . 1 Terminals 18 | . 8 . 10 . . Fabricators . | . . . . . . Repair Stations 2 | . 2 . . . . Recycling Units 3 | . 2 . 1 . . Scanalyzers . | . . . . . . Garrison Access . | . . . . . . Terminal Hacks 8 | . 4 . 2 . 2 Record 1 | . . . . . 1 Part Schematic 1 | . 1 . . . . Prototype ID Bank 1 | . 1 . . . . Branch Access Points 1 | . 1 . . . . Unreport Threat 1 | . . . 1 . . Locate Traps 2 | . 1 . 1 . . EX-Prototype ID Bank 1 | . . . . . 1 Fabricator Hacks . | . . . . . . Repair Station Hacks 2 | . 2 . . . . Scan Component 1 | . 1 . . . . Repair 1 | . 1 . . . . Recycling Unit Hacks . | . . . . . . Scanalyzer . | . . . . . . Garrison Access Hacks . | . . . . . . Unauthorized Hacks 7 | . 3 . 4 . . Terminals 4 | . 1 . 3 . . Track 3 | . 1 . 2 . . Operators 1 | . . . 1 . . Fabricators . | . . . . . . Repair Stations . | . . . . . . Recycling Units 3 | . 2 . 1 . . Tunnel 3 | . 2 . 1 . . Scanalyzers . | . . . . . . Garrison Access . | . . . . . . Data Cores Recovered . | . . . . . . Used . | . . . . . . Hacking Detections 5 | . 3 . 2 . . Full Trace Events . | . . . . . . Feedback Events . | . . . . . . Feedback Blocked . | . . . . . . Robot Schematics Acquired . | . . . . . . Robots Built . | . . . . . . Matter . | . . . . . . Time . | . . . . . . Total Robot Build Rating . | . . . . . . Part Schematics Acquired 1 | . 1 . . . . Parts Built . | . . . . . . Matter . | . . . . . . Time . | . . . . . . Total Part Build Rating . | . . . . . . Parts Repaired 1 | . 1 . . . . Time 26 | . 26 . . . . Parts Recycled . | . . . . . . Recycled Matter . | . . . . . . Retrieved Matter . | . . . . . . Retrieved Components . | . . . . . . Parts Scanalyzed . | . . . . . . Part Schematics Acquired . | . . . . . . Parts Damaged . | . . . . . . Bothacking | -11 -10 -10 -9 -9 -9 ------------ Run | Scr Mat Min Mat Min Exi Used RIF Installer . | . . . . . . Robots Hacked . | . . . . . . Non-combat . | . . . . . . Combat . | . . . . . . Robot Hacks Applied . | . . . . . . Relay Couplers Released . | . . . . . . Robots Rewired . | . . . . . . Allies Hacked . | . . . . . . Hacks Repelled . | . . . . . . Allies | -11 -10 -10 -9 -9 -9 -------- Run | Scr Mat Min Mat Min Exi Total Allies . | . . . . . . Largest Group . | . . . . . . Highest-Rated Group . | . . . . . . Highest-Rated Ally . | . . . . . . Total Orders . | . . . . . . Ally Attacks . | . . . . . . Total Damage . | . . . . . . Kills . | . . . . . . Allies Corrupted . | . . . . . . Allies Melted . | . . . . . . Intel | -11 -10 -10 -9 -9 -9 ------- Run | Scr Mat Min Mat Min Exi Robot Analysis Total . | . . . . . . Derelict Logs Recovered 2 | . . 1 . 1 . Drone Launches . | . . . . . . Drone Recoveries . | . . . . . . Exploration | -11 -10 -10 -9 -9 -9 ------------- Run | Scr Mat Min Mat Min Exi Turns Passed 5048 | 114 1426 224 1004 1081 1199 Spaces Moved 2330 | 79 670 90 403 554 534 Core 3 | 3 . . . . . Treads 2231 | 3 647 90 403 554 534 Legs . | . . . . . . Wheels 96 | 73 23 . . . . Hover . | . . . . . . Flight . | . . . . . . Fastest Speed 50 | 50 100 160 180 180 180 Average Speed 173 | 100 158 160 180 180 195 Slowest Speed 200 | 160 180 160 180 180 200 Overloaded Moves . | . . . . . . Propulsion Burnouts . | . . . . . . Robots Hopped . | . . . . . . Cave-ins Triggered . | . . . . . . Exploration Rate (%) 54 | 4 87 24 43 99 70 Regions Visited 5 Branch Regions 3 Pre-discovered Areas 5 | . 2 1 1 . 1 Known Exits Taken 1 | . 1 . . . . Unknown Exits Taken 4 | 1 . 1 1 1 . Scrap Searched 2 | . . . . 2 . Spaces Dug 5 | . . . . 5 . Terrain Destroyed 124 | . . 20 32 33 39 Melee . | . . . . . . Projectile 22 | . . . . . 22 AOE 102 | . . 20 32 33 17 Terrain Rammed . | . . . . . . Walls Destroyed . | . . . . . . Machines Disabled . | . . . . . . Actions | -11 -10 -10 -9 -9 -9 --------- Run | Scr Mat Min Mat Min Exi Total 2993 | 104 933 135 572 605 644 Wait 198 | . 136 19 35 5 3 Move 2325 | 78 669 89 402 553 534 Hop . | . . . . . . Pick Up 75 | 11 23 . 26 3 12 Fast Attach 17 | 6 5 1 2 1 2 Attach 32 | 2 3 1 7 . 19 Detach 4 | 1 . . . . 3 Swap 36 | . 10 2 11 6 7 Drop 71 | 2 22 . 18 6 23 Fire 197 | 4 60 20 64 21 28 Melee . | . . . . . . Ram . | . . . . . . Kick . | . . . . . . Crush 31 | . 5 3 7 3 13 Escape Stasis . | . . . . . . Rewire 7 | . . . . 7 . Trap . | . . . . . . Miscellaneous . | . . . . . . Route ------- -11/Scrapyard -10/Materials (discovered 3 exits: *Mat x2 / *Min) -10/Mines (discovered 2 exits: *Mat x2) -9/Materials (discovered 2 exits: [*Mat] / [*Min]) -9/Mines (discovered 3 exits: [*Mat x2] / *Exi) -9/Exiles (discovered 2 exits: [*Min x2]) History --------- Turn | Location | Event 19 | -11/Scrapyard | Discovered new exit (range 16) 115 | -11/Scrapyard | Entered Materials 304 | -10/Materials | Build established: Mutant 415 | -10/Materials | Discovered new exit (range 14) 887 | -10/Materials | Identified exit to Mines 926 | -10/Materials | Repaired Lgt. Treads? 1109 | -10/Materials | Core integrity fell below 50% 1339 | -10/Materials | Discovered new exit (range 11) 1541 | -10/Materials | Entered Mines 1630 | -10/Mines | Discovered new exit (range 7) 1717 | -10/Mines | Discovered new exit (range 10) 1728 | -10/Mines | Core integrity fell below 20% 1765 | -10/Mines | Entered Materials 1765 | -9/Materials | Evolved 2 slots: Utility x2 2072 | -9/Materials | Build established: Hauler-Mutant 2197 | -9/Materials | Discovered new exit (range 5) 2317 | -9/Materials | Lost 4 parts (1p1n2w) 2608 | -9/Materials | Discovered new exit (range 9) 2769 | -9/Materials | Entered Mines 2805 | -9/Mines | Discovered new exit (range 15) 3009 | -9/Mines | Deemed a non-threat by the Exiles lab entrance 3009 | -9/Mines | Discovered new exit (range 5) 3088 | -9/Mines | A weapon hastily lodged in a ceiling crevice suddenly fell to the ground 3264 | -9/Mines | Learned location of 1 exit from Materials 3266 | -9/Mines | Joined a pair of Derelicts in attacking an 0b10 outpost 3383 | -9/Mines | Discovered new exit (range 14) 3850 | -9/Mines | Entered Exiles 3874 | -9/Exiles | Discovered new exit (range 15) 3895 | -9/Exiles | Met 8R-AWN 3924 | -9/Exiles | Met EX-HEX 4082 | -9/Exiles | Met EX-DEC 4118 | -9/Exiles | Learned location of Zion (-6) 4190 | -9/Exiles | Discovered new exit (range 10) 4558 | -9/Exiles | Met EX-BIN 4582 | -9/Exiles | Aligned with FarCom system 4584 | -9/Exiles | Given EX-Vault access code 4632 | -9/Exiles | Opened EX-Vault 4646 | -9/Exiles | Found AWS/Gauss 4687 | -9/Exiles | Warned to stay clear of 0b10 Research branches 4716 | -9/Exiles | Exiles lab attacked by MAIN.C 4792 | -9/Exiles | Attacked by the Exiles 4843 | -9/Exiles | Destroyed 8R-AWN 4848 | -9/Exiles | Found Prototype Ballistic Gun 4853 | -9/Exiles | Found Prototype Ballistic Gun 4857 | -9/Exiles | Found Prototype Protection 4878 | -9/Exiles | Found Prototype Device 4878 | -9/Exiles | Identified AS-neutralizer No. 17b 4908 | -9/Exiles | Core integrity fell below 50% 4972 | -9/Exiles | Lost 8 parts (1p4n2u1w) 4989 | -9/Exiles | Destroyed 25 combat bots 5007 | -9/Exiles | Core integrity fell below 20% 5018 | -9/Exiles | Identified 8R-AWN's Boregun (x2) 5049 | -9/Exiles | Destroyed by G-34 Mercenary with Small Laser Last Messages --------------- 05029_ HV Slug penetrates P-60 Hacker. 05032_ P-60 Hacker suffers critical hit. 05032_ P-60 Hacker destroyed. 05032_ Switching to secondary target: H-55 Commando. 05032_ HV Slug penetrates H-55 Commando. 05032_ H-55 Commando suffers critical hit. 05032_ Destroyed Gauss Rifle. 05038_ HV Slug penetrates P-60 Hacker. 05038_ P-60 Hacker suffers critical hit. 05038_ Destroyed Gravmag System. 05038_ HV Slug penetrates P-60 Hacker. 05040_ Imp. Treads destroyed. 05042_ 8R-AWN's Boregun destroyed. 05043_ HV Slug penetrates Machine. 05044_ System corrupted: Matter fused (-10). 05046_ Dropped Hcp. Matter Pod. 05047_ Extracted 200 matter. 05047_ HV Slug penetrates P-60 Hacker. 05047_ P-60 Hacker suffers critical hit. 05047_ Destroyed Shock Rifle. Map ----- +----------------------------------------------------+ | ??????????????????????????????# #?#"""""""#??? | | ??????????????????????????????# #?#"""""""#??? | | ##???????????????????????????## ###"" """"#??? | | "###?????????????????????????#" """"#??? | | ! "#?????????????????????????#" """#??? | | "#?????????????????????????#" """#??? | | "#?????????????????????????#" """#??? | | ""#?????????????#???????????#" """#??? | | ""#???????????? ""?????????#" """#??? | | ""#????????????" """????????## """"??? | | ########???????" ?????????# """#??? | | " #??????"" ?????????#" "X" """"??? | | ########??????"" "#????????#" """ #??? | | #? ##???????? ""?????????#" """""""""#??? | | =!### #####?????" "?????????##" ###########??? | | %*[ # #????## #????????##"" #????????????? | | != ###### ###?######"" #????????????? | | % #=[X #"###""""""" ##???????????? | | * =%= """""" " "" ##???######## | | " *[% ! " """ " #####""""""" | | "# * =%[!%*=[[ " " """ " | | ### **=%*% % "" | | #?### ! %=!!=%! ! " | | #???#" [[ =[*=%*% =%[!! g | | #??# #" =%%==%[[= =* * !%[ p | | ##??#####" =[== *%!@ !%= = %= g | | ????????#" ! = = ! g h | | ???????##" [ ###### " | | ???????#"" =*= ;#????#####""" | | ??????##""" [%[" ;##????????##""" | | ??????#" !"""###??????????#"""" | | ??????#" ""#???????????##"" | | ??????# % ########??####"""" | | ??????#" ## ####""" | | ??????#"" """" | | ??????##"" ! | | ???????#"""" =%* | | ???????## != " | | ????????#" " "" """ | | ????????#"""" ""## ##""" " " ""#" | | ????????#"" ""#### ######""" """##" | | ?????????" """"##??# #????###""""#### | | ?????????""" """#??## ####???######??? | | ?????????? *%[ ""##??#! "!#???????????? | | ??????????"" ! """##???#" !#???????????? | | ???????????""" #?????#" "#???????????? | | ?????????????""" %! #??????# ""!"#???????????? | | ?????????????? ???????########???????????? | | ??????????????#### #??????????????????????????? | | ?????????????????## ???????????????????????????? | +----------------------------------------------------+ Best States ------------- Heat Dissipation 28 Energy Generation 12 Energy Capacity 265 Matter Stores 300 Matter Capacity 300 Sight Range 16 Terrain Scan Density 10 Armor Coverage 225 Core Shielding 20 Evasion (%) 40 Recoil Reduction 2 Item Schematics ----------------- Hcp. Storage Unit | -10/Materials | Hacked Robot Schematics ------------------ None Fabricated ------------ Nothing Alien Tech Used ----------------- None Achievements -------------- None Challenges ------------ None Game ------ Seed MachineEnhancedImmobilizer Manual? 0 Play Time 00:34:12 Cumulative 279.9 hours Start 2021.01.05 @ 20:04:25 End 2021.01.05 @ 20:39:13 Sessions 1 Manual Loads 0 Difficulty Rogue Special Mode None Game No. 284 Rogue 284 Adventurer 0 Explorer 0 Win Type - Total 4 Types 4/0/0/0/0/0/0/0/0 Lore% 64 Gallery% 79 Achievement% 61 Wizard Run 0 Options --------- ASCII 0 Keyboard 0 Movement Numpad Keybinds 0 Fullscreen 2 Font 24/Terminus Map View 76x50 Tactical HUD 1 Map Filters NONE Filters NONE Steam 1 RUN: dabc5551-5031-4293-91c9-f4c54fe37726